Cogmind - Beta 9.6 @@@ ROGUE MODE // 2020.08.15 @ 05:16:27 Player: Jerry Result: Destroyed by L-31 Rogue with Katana Performance ------------- Evolutions (1) 500 Regions Visited (3) 600 Robots Destroyed (17) 85 Value Destroyed (550) 550 Prototype IDs (2) 40 Alien Tech Used (0) 0 Bonus (0) 0 TOTAL SCORE: 1775 Bonus ------- None Cogmind --------- Core Integrity 0/400 Matter 257/300 Energy 226/250 System Corruption 0% Temperature Cool (114) Movement Core (200) Ox3 Location -9/Materials Parts ------- > --- POWER (1) -------- Ion Engine > --- PROPULSION (4) --- (None) > --- UTILITY (2) ------ (None) > --- WEAPON (2) ------- Spread Laser Spread Laser > --- INVENTORY (4) ---- (None) Peak State ------------ > --- POWER ------------ Light Nuclear Core > --- PROPULSION ------- Light Treads Light Treads Flight Unit Flight Unit > --- UTILITY ---------- Light Armor Plating Shield Generator > --- WEAPON ----------- EM Shotgun Autogun > --- INVENTORY -------- Ion Engine EM Shotgun Autogun [Rating: 14] Favorites ----------- Power Light Nuclear Core Engine Light Ion Engine Power Core Light Nuclear Core Propulsion Aluminum Leg Treads Light Treads Leg Aluminum Leg Hover Unit Hover Unit Flight Unit Flight Unit Utility Shield Generator Device Shield Generator Storage Small Storage Unit Protection Light Armor Plating Weapon Autogun Energy Gun EM Shotgun Ballistic Gun Autogun Build | -11 -10 -10 -9 ------- Run | Scr Mat Min Mat Slots Evolved 2 | . . . 2 Power . | . . . . Propulsion 2 | . . . 2 Utility . | . . . . Weapon . | . . . . Parts Attached 28 | 6 5 3 14 Power 3 | 1 1 . 1 Engine 2 | 1 . . 1 Core 1 | . 1 . . Reactor . | . . . . Propulsion 9 | 2 . 2 5 Treads 2 | . . . 2 Leg 3 | 2 . . 1 Wheel . | . . . . Hover 2 | . . . 2 Flight 2 | . . 2 . Utility 5 | 1 2 . 2 Device 2 | . 1 . 1 Storage 1 | 1 . . . Processor . | . . . . Hackware . | . . . . Protection 2 | . 1 . 1 Artifact . | . . . . Weapon 11 | 2 2 1 6 Energy Gun 8 | 1 1 1 5 Energy Cannon . | . . . . Ballistic Gun 3 | 1 1 . 1 Ballistic Cannon . | . . . . Launcher . | . . . . Special Weapon . | . . . . Impact Weapon . | . . . . Slashing Weapon . | . . . . Piercing Weapon . | . . . . Special Melee Weapon . | . . . . Unidentified Prototypes . | . . . . Parts Lost 16 | . . . 16 Power 1 | . . . 1 Propulsion 6 | . . . 6 Utility 3 | . . . 3 Weapon 6 | . . . 6 Highest Loss Streak 11 | . . . 11 Average Slot Usage (%) 83 | . 97 94 68 Engine 4 | . 9 . 1 Core 7 | . 4 14 7 Treads 3 | . . . 8 Leg 12 | . 28 6 . Flight 10 | . . 20 15 Device 8 | . 6 14 7 Storage 7 | . 14 9 . Protection 3 | . 5 . 3 Energy Gun 12 | . 13 14 10 Ballistic Gun 12 | . 14 14 9 Naked Turns 5 | . . . 5 Heaviest Build 17 | 9 17 17 16 Greatest Support 40 | 20 20 20 40 Greatest Overweight (x) 5 | . . 5 3 Average Overweight (x) . | . . 1 . Largest Inventory Capacity 6 | 6 6 6 4 Average Capacity 5 | 5 6 5 4 Most Carried 6 | 4 6 6 4 Average Carried 3 | 1 5 3 2 Final Capacity 6 | 6 6 4 4 Final Carried 6 | 4 6 3 . Class Distribution -------------------- 78% | Mutant 21% | Scavenger-Mutant Dominant Class ---------------- Mutant | -10/Materials Mutant | -10/Mines Scavenger-Mutant | -9/Materials Resources | -11 -10 -10 -9 ----------- Run | Scr Mat Min Mat Matter Collected 596 | 195 125 20 256 Remotely . | . . . . Salvage Created 659 | . 152 56 451 Parts 52 | . 12 7 33 Haulers Intercepted . | . . . . Recyclers Shooed . | . . . . Parts Field Recycled . | . . . . Retrieved Matter . | . . . . Parts Self-Destructed . | . . . . Prevented . | . . . . Kills | -11 -10 -10 -9 ------- Run | Scr Mat Min Mat Combat Hostiles Destroyed 15 | . 3 3 9 Guns 15 | . 3 3 9 Classes Destroyed 4 | . 2 1 1 Watcher 2 | . 1 . 1 Swarmer 3 | . . 3 . Grunt 8 | . 3 . 5 Sentry 4 | . . . 4 Best Kill Streak 3 | . 2 3 2 Combat Bots Only 3 | . 2 3 2 Max Kills in Single Turn 2 | . 1 2 1 Gunslinging . | . . . . Exploded . | . . . . Melee . | . . . . Uniques/NPCs Destroyed . | . . . . Combat | -11 -10 -10 -9 -------- Run | Scr Mat Min Mat Damage Taken 1750 | . 225 40 1485 Core 464 | . 51 . 413 Absorbed by Shields 106 | . 25 17 64 Core Remaining (%) 89 | 100 . 79 . Volleys Fired 83 | . 20 8 55 Largest 2 | . 2 2 2 Hottest 130 | . 60 68 130 Shots Fired 142 | . 37 16 89 Gun 142 | . 37 16 89 Cannon . | . . . . Launcher . | . . . . Special . | . . . . Kinetic 78 | . 20 8 50 Thermal 43 | . 17 . 26 Explosive . | . . . . Electromagnetic 21 | . . 8 13 Robot Hit Streak 12 | . 12 3 9 Robot Miss Streak 5 | . 3 5 3 Penetration Max . | . . . . Secondary Targets 2 | . . . 2 Max Gunslinging Chain 1 | . . . 1 Shots Hit Robots 70 | . 24 10 36 Core Hits 42 | . 13 3 26 Critical Hits . | . . . . Critical Kills . | . . . . Critical Parts Destroyed . | . . . . Melee Attacks . | . . . . Impact . | . . . . Slashing . | . . . . Piercing . | . . . . Sneak Attacks . | . . . . Combat Hostiles . | . . . . Follow-up Attacks . | . . . . Damage Inflicted 912 | . 243 55 614 Guns 905 | . 243 55 607 Cannons . | . . . . Explosions . | . . . . Melee . | . . . . Ramming 7 | . . . 7 Kinetic 351 | . 116 13 222 Thermal 395 | . 127 . 268 Explosive . | . . . . Electromagnetic 159 | . . 42 117 Impact . | . . . . Slashing . | . . . . Piercing . | . . . . Highest Corruption . | . . . . Average Corruption . | . . . . Corruption Purged . | . . . . Overload Shots . | . . . . Overflow Damage . | . . . . Projectiles . | . . . . Explosions . | . . . . Melee . | . . . . Knockbacks . | . . . . Impact . | . . . . Kinetic . | . . . . Secondary . | . . . . Self-Inflicted Damage 3 | . . . 3 Shots . | . . . . Rammed 4 | . . . 4 Targets Rammed 5 | . . . 5 Kicked 1 | . . . 1 Crushed . | . . . . Highest Temperature 222 | . 222 148 197 Average Temperature 69 | . 80 73 63 Received Heat Transfer 806 | . 126 . 680 Siege Activations . | . . . . Robots Corrupted . | . . . . Combat Hostiles . | . . . . Parts Fried . | . . . . Impact Corruptions . | . . . . Robots Melted . | . . . . Combat Hostiles . | . . . . Parts Melted . | . . . . Heat Transferred 849 | . 300 . 549 Parts Sabotaged . | . . . . Parts Stolen . | . . . . Parts Stripped . | . . . . Power Chain Reactions 1 | . . . 1 Missiles Intercepted . | . . . . Alert | -11 -10 -10 -9 ------- Run | Scr Mat Min Mat Peak Influence 174 | . 107 70 174 Average Influence 75 | . 52 66 113 Maximum Alert Level . | . . . . Low Security (%) 100 | 100 100 100 100 Level 1 . | . . . . Level 2 . | . . . . Level 3 . | . . . . Level 4 . | . . . . Level 5 . | . . . . High Security . | . . . . Max Security . | . . . . Squads Dispatched 3 | . 1 . 2 Investigation 1 | . 1 . . Extermination . | . . . . Reinforcement 2 | . . . 2 Assault . | . . . . Garrison . | . . . . Intercept . | . . . . Construction Impeded 1 | . . . 1 Haulers Reinforced . | . . . . Stealth | -11 -10 -10 -9 --------- Run | Scr Mat Min Mat Distress Signals 3 | . 1 . 2 Communications Jammed . | . . . . Distress Signals . | . . . . Times Spotted 25 | . 8 1 16 Peak Tracking Total 5 | . 3 1 5 Tactical Retreats 1 | . . . 1 Traps | -11 -10 -10 -9 ------- Run | Scr Mat Min Mat Traps Triggered 1 | . 1 . . Indirectly . | . . . . Trap Hack Attempts . | . . . . Triggered . | . . . . Disarmed . | . . . . Reprogrammed . | . . . . Reused . | . . . . Traps Extracted . | . . . . Installed . | . . . . Triggered . | . . . . Machines | -11 -10 -10 -9 ---------- Run | Scr Mat Min Mat Machines Disabled 1 | . . . 1 Max in Single Turn 1 | . . . 1 Machines Sabotaged . | . . . . Garrisons Compromised . | . . . . Overloaded Fab Kills . | . . . . Fab Network Shutdowns . | . . . . Hacking | -11 -10 -10 -9 --------- Run | Scr Mat Min Mat Machines Accessed 2 | . 2 . . Terminals 2 | . 2 . . Fabricators . | . . . . Repair Stations . | . . . . Recycling Units . | . . . . Scanalyzers . | . . . . Garrison Access . | . . . . Total Hacks 5 | . 5 . . Successful 3 | . 3 . . Failed 2 | . 2 . . Catastrophic 1 | . 1 . . Database Lockouts . | . . . . Manual . | . . . . Terminals 5 | . 5 . . Fabricators . | . . . . Repair Stations . | . . . . Recycling Units . | . . . . Scanalyzers . | . . . . Garrison Access . | . . . . Terminal Hacks 3 | . 3 . . Record 1 | . 1 . . Prototype ID Bank 1 | . 1 . . Unreport Threat 1 | . 1 . . Fabricator Hacks . | . . . . Repair Station Hacks . | . . . . Recycling Unit Hacks . | . . . . Scanalyzer . | . . . . Garrison Access Hacks . | . . . . Unauthorized Hacks . | . . . . Terminals . | . . . . Fabricators . | . . . . Repair Stations . | . . . . Recycling Units . | . . . . Scanalyzers . | . . . . Garrison Access . | . . . . Data Cores Recovered . | . . . . Used . | . . . . Hacking Detections 1 | . 1 . . Full Trace Events 1 | . 1 . . Feedback Events . | . . . . Feedback Blocked . | . . . . Robot Schematics Acquired . | . . . . Robots Built . | . . . . Matter . | . . . . Time . | . . . . Total Robot Build Rating . | . . . . Part Schematics Acquired . | . . . . Parts Built . | . . . . Matter . | . . . . Time . | . . . . Total Part Build Rating . | . . . . Parts Repaired . | . . . . Time . | . . . . Parts Recycled . | . . . . Recycled Matter . | . . . . Retrieved Matter . | . . . . Retrieved Components . | . . . . Parts Scanalyzed . | . . . . Part Schematics Acquired . | . . . . Parts Damaged . | . . . . Bothacking | -11 -10 -10 -9 ------------ Run | Scr Mat Min Mat Used RIF Installer . | . . . . Robots Hacked . | . . . . Non-combat . | . . . . Combat . | . . . . Robot Hacks Applied . | . . . . Relay Couplers Released . | . . . . Robots Rewired . | . . . . Allies Hacked . | . . . . Hacks Repelled . | . . . . Allies | -11 -10 -10 -9 -------- Run | Scr Mat Min Mat Total Allies . | . . . . Largest Group . | . . . . Highest-Rated Group . | . . . . Highest-Rated Ally . | . . . . Total Orders . | . . . . Ally Attacks . | . . . . Total Damage . | . . . . Kills . | . . . . Allies Corrupted . | . . . . Allies Melted . | . . . . Intel | -11 -10 -10 -9 ------- Run | Scr Mat Min Mat Robot Analysis Total . | . . . . Derelict Logs Recovered . | . . . . Drone Launches . | . . . . Drone Recoveries . | . . . . Exploration | -11 -10 -10 -9 ------------- Run | Scr Mat Min Mat Turns Passed 866 | 65 318 129 354 Spaces Moved 461 | 50 209 60 142 Core 30 | 10 . 1 19 Treads 69 | . . . 69 Legs 261 | 40 209 3 9 Wheels . | . . . . Hover 9 | . . . 9 Flight 92 | . . 56 36 Fastest Speed 50 | 50 120 117 50 Average Speed 129 | 106 120 161 136 Slowest Speed 360 | 120 120 360 200 Overloaded Moves . | . . . . Propulsion Burnouts . | . . . . Robots Hopped . | . . . . Cave-ins Triggered . | . . . . Exploration Rate (%) 18 | 3 34 21 15 Regions Visited 3 Branch Regions 1 Pre-discovered Areas . | . . . . Known Exits Taken . | . . . . Unknown Exits Taken 3 | 1 1 1 . Scrap Searched . | . . . . Spaces Dug . | . . . . Terrain Destroyed 3 | . . . 3 Melee . | . . . . Projectile . | . . . . AOE 3 | . . . 3 Actions | -11 -10 -10 -9 --------- Run | Scr Mat Min Mat Total 604 | 59 245 80 220 Wait . | . . . . Move 458 | 49 208 59 142 Hop . | . . . . Pick Up 14 | 4 7 1 2 Fast Attach 19 | 6 1 2 10 Attach 6 | . 2 . 4 Detach 1 | . . 1 . Swap 3 | . 2 1 . Drop 15 | . 5 8 2 Fire 83 | . 20 8 55 Melee . | . . . . Ram 3 | . . . 3 Kick 2 | . . . 2 Crush . | . . . . Escape Stasis . | . . . . Rewire . | . . . . Trap . | . . . . Miscellaneous . | . . . . Route ------- -11/Scrapyard -10/Materials -10/Mines -9/Materials History --------- Turn | Location | Event 3 | -11/Scrapyard | Discovered new exit (range 15) 66 | -11/Scrapyard | Entered Materials 331 | -10/Materials | Build established: Mutant 379 | -10/Materials | Discovered new exit (range 5) 384 | -10/Materials | Entered Mines 482 | -10/Mines | Discovered new exit (range 13) 513 | -10/Mines | Entered Materials 513 | -9/Materials | Evolved 2 slots: Propulsion x2 784 | -9/Materials | Core integrity fell below 50% 811 | -9/Materials | Lost 11 parts (1p4n2u4w) 838 | -9/Materials | Core integrity fell below 20% 867 | -9/Materials | Destroyed by L-31 Rogue with Katana Last Messages --------------- 00812_ Acquired 48 matter. 00817_ Acquired Heat Sink. 00819_ G-34 Mercenary destroyed. 00819_ Switching to secondary target: G-34 Mercenary. 00825_ Sml. Laser destroyed. 00829_ Kicked Y-45 Defender out of the way. 00830_ Slammed into Y-45 Defender. 00830_ K-01 Serf collects debris. 00831_ Aluminum Leg destroyed. 00833_ Slammed into Y-45 Defender. 00833_ Destabilizing: Core damaged (-12). 00834_ K-01 Serf collects debris. 00838_ Destroyed Heat Sink. 00839_ Beam Rifle destroyed. 00848_ Acquired Spread Laser. 00851_ Heat Sink destroyed. 00851_ Acquired Spread Laser. 00853_ Y-45 Defender destroyed. 00856_ G-34 Mercenary destroyed. 00862_ L-31 Rogue unfolds itself. Map ----- +----------------------------------------------------+ | ?????????????????????????????????????????????????? | | ?????????????????????????????????????????????????? | | ?????????????????????????????????????????????????? | | ?????????????????????????????????????????????????? | | ?????????????????????????????????????????????????? | | ?????????????????????????????????????????????????? | | ?????????????????????????????????????????????????? | | ?????????????????????????????????????????????????? | | ?????????????????????????????????????????????????? | | ?????????????????????????????????????????????????? | | ?????????????????????????????????????????????????? | | ?????????????????????????????????????????????????? | | ?????????????????????????????????????????????????? | | ?????????????????????????????????????????????????? | | ?????????????????????????????????????????????????? | | ##???????????????????????????????????????????????? | | #???????????????#+#???#?????????????????????????? | | "#???????????????# ??? ????????????????????????? | | T#???????????????# #???# ????????????????????????? | | "#???????????????# #???# ????????????????????????? | | #???????######??# #???# ????????????????????????? | | #??????##!!!!##?# #???#g????????????????????????? | | #??????#! !#?# #####/######??????????????????? | | #??????#! !#?# ## [** ##?????????????????? | | ######### ### ## l ** #?????????????????? | | [ == #=* @ * ##?????????????????? | | = =u=%! = #??????????????????? | | % # """%[ #??????????????????? | | ########## # """ "T" #??????????????????? | | #??????# # """ #??????????????????? | | #??????# !# #??????????????????? | | #??????# [%###########??????????????????? | | #???? * ???????????????????????????? | | #?? ?????????????????????????? | | #? = ????????????????????????? | | #? ???????????????????????? | | #? """" """" """ ???????????????????????? | | #? """" """" """ ???????????????????????? | | ### ???"" """" """ ??????????????????????? | | ???? ???? ?? ?? ??????????????????????? | | ????????? ?? ??? ??????????????????????? | | ?????????? ?? ???? ????????????????????????? | | ???????????+#???####?????????????????????????????? | | ?????????????????????????????????????????????????? | | ?????????????????????????????????????????????????? | | ?????????????????????????????????????????????????? | | ?????????????????????????????????????????????????? | | ?????????????????????????????????????????????????? | | ?????????????????????????????????????????????????? | | ?????????????????????????????????????????????????? | +----------------------------------------------------+ Best States ------------- Heat Dissipation 38 Energy Generation 14 Energy Capacity 250 Matter Stores 300 Matter Capacity 300 Sight Range 16 Terrain Scan Density 10 Armor Coverage 150 Evasion (%) 40 Recoil Reduction 2 Item Schematics ----------------- None Robot Schematics ------------------ None Fabricated ------------ Nothing Alien Tech Used ----------------- None Achievements -------------- Crack Shot Everything Is Under Control Challenges ------------ None Game ------ Seed ChipBombardmentTrap Manual? 0 Play Time 00:19:24 Cumulative 2.2 hours Start 2020.08.15 @ 05:02:18 End 2020.08.15 @ 05:16:27 Sessions 1 Manual Loads 0 Difficulty Rogue Special Mode None Game No. 5 Rogue 5 Adventurer 0 Explorer 0 Win Type - Total 0 Types 0/0/0/0/0/0/0 Lore% 10 Gallery% 6 Achievement% 3 Wizard Run 0 Options --------- ASCII 0 Keyboard 1 Movement Numpad Keybinds 0 Fullscreen 1 Font 18/SmallcapsGlow Map View 76x50 Tactical HUD 1 Map Filters NONE Filters NONE Steam 0 RUN: 49637be6-9dfb-4111-8393-4505176dc33e